[Event "2nd Gujarat Open 2019"]
[Site "Ahmedabad, Gujarat"]
[Date "2019.09.26"]
[Round "7.5"]
[White "Bharat Kumar Reddy Poluri"]
[Black "Himanshu, Sharma"]
[Result "0-1"]
[ECO "B83"]
[WhiteElo "2304"]
[BlackElo "2408"]
[Annotator "NA"]
[PlyCount "74"]
[EventDate "2019.09.22"]
[EventType "swiss"]
[EventCountry "IND"]
[SourceTitle "playchess.com"]
[Source "ChessBase"]
[SourceQuality "1"]
[TimeControl "5400+30"]

1. e4 {[%emt 0:00:59]} c5 {[%emt 0:00:00]} 2. Nf3 {[%emt 0:00:08]} e6 {[%emt 0:00:58]} 3. d4 {[%emt 0:00:26]} cxd4 {[%emt 0:00:04]} 4. Nxd4 {[%emt 0:00:05]} Nf6 {[%emt 0:00:09]} 5. Nc3 {[%emt 0:00:03]} d6 {[%emt 0:00:06]} 6. Be2 {[%emt 0:00:10]} Nc6 {[%emt 0:00:15]} 7. Nb3 {[%emt 0:00:19]} a6 {[%emt 0:00:43]} 8. a4 {[%emt 0:01:24]} b6 {[%emt 0:00:32]} 9. O-O {[%emt 0:00:41]} Be7 {[%emt 0:00:29]} 10. f4 {[%emt 0:00:22]} Qc7 {[%emt 0:00:33]} 11. Bf3 {[%emt 0:01:46]} Rb8 {[%emt 0:02:15]} 12. Be3 {[%emt 0:00:32]} O-O {[%emt 0:00:54]} 13. g4 {[%emt 0:02:51]} Re8 {[%emt 0:00:53]} 14. g5 {[%emt 0:00:19]} Nd7 {[%emt 0:00:06]} 15. Kh1 {[%emt 0:01:06]} Bf8 {[%emt 0:00:19]} 16. Qd2 {[%emt 0:00:46]} Na5 {[%emt 0:00:50]} 17. Nxa5 {[%emt 0:03:49]} bxa5 {[%emt 0:00:15]} 18. Ra2 {[%emt 0:01:50]} Rb4 {[%emt 0:06:11]} 19. Ne2 {[%emt 0:11:39]} Bb7 {[%emt 0:05:20]} 20. Ng3 {[%emt 0:03:10]} Nc5 {[%emt 0:02:47]} 21. Qg2 {[%emt 0:03:25]} g6 {[%emt 0:07:35]} 22. b3 {[%emt 0:01:47]} e5 {[%emt 0:05:47]} 23. f5 {[%emt 0:03:28]} d5 {[%emt 0:02:36]} 24. exd5 {[%emt 0:06:19]} e4 {[%emt 0:00:55]} 25. Be2 {[%emt 0:03:06]} Bxd5 {[%emt 0:00:27]} 26. Raa1 {[%emt 0:00:32]} Nd7 {[%emt 0:08:21]} 27. Rad1 {[%emt 0:01:00]} Bb7 {[%emt 0:04:53]} 28. fxg6 {[%emt 0:13:33]} hxg6 {[%emt 0:01:14]} 29. Bc4 {[%emt 0:12:38]} Rxc4 {[%emt 0:03:24]} 30. bxc4 {[%emt 0:00:14]} Ne5 {[%emt 0:00:13]} 31. Qe2 {[%emt 0:01:24]} Nxc4 {[%emt 0:00:55]} 32. Bd4 {[%emt 0:01:15]} e3+ {[%emt 0:02:50]} 33. Kg1 {[%emt 0:00:02]} Bd6 {[%emt 0:05:54]} 34. Rf3 {[%emt 0:02:14]} Bxf3 {[%emt 0:20:10]} 35. Qxf3 {[%emt 0:00:03]} Nd2 {[%emt 0:00:25]} 36. Qe2 {[%emt 0:01:43]} Bxg3 {[%emt 0:02:53]} 37. Rxd2 {[%emt 0:00:12]} Bf2+ {[%emt 0:00:21]} 0-1

[Event "2nd Gujarat Open 2019"]
[Site "Ahmedabad, Gujarat"]
[Date "2019.09.26"]
[Round "7.6"]
[White "Manush Shah"]
[Black "Rahman, Ziaur"]
[Result "1-0"]
[ECO "E67"]
[WhiteElo "2352"]
[BlackElo "2492"]
[Annotator "ChessBase"]
[PlyCount "55"]
[EventDate "2019.09.22"]
[EventType "swiss"]
[EventCountry "IND"]
[SourceTitle "playchess.com"]
[Source "ChessBase"]
[SourceQuality "1"]
[TimeControl "5400+30"]

1. d4 {[%emt 0:00:28]} Nf6 {[%emt 0:00:29]} 2. Nf3 {[%emt 0:00:12]} g6 {[%emt 0:02:17]} 3. c4 {[%emt 0:00:28]} Bg7 {[%emt 0:00:06]} 4. g3 {[%emt 0:00:05]} O-O {[%emt 0:00:44]} 5. Bg2 {[%emt 0:00:10]} d6 {[%emt 0:00:06]} 6. Nc3 {[%emt 0:00:13]} Nbd7 {[%emt 0:02:27]} 7. O-O {[%emt 0:00:14]} e5 {[%emt 0:00:03]} 8. dxe5 {[%emt 0:05:01]} dxe5 {[%emt 0:01:42]} 9. Qb3 {[%emt 0:00:05]} c6 {[%emt 0:01:31]} 10. Rd1 {[%emt 0:00:31]} Qe7 {[%emt 0:02:53]} 11. Ng5 {[%emt 0:03:56]} a5 {[%emt 0:12:28]} 12. Nge4 {[%emt 0:05:51]} Qb4 {[%emt 0:10:30]} 13. Bd2 {[%emt 0:17:48]} Qxb3 {[%emt 0:12:20]} 14. axb3 {[%emt 0:01:09]} Nxe4 {[%emt 0:00:37]} 15. Nxe4 {[%emt 0:02:33]} f5 {[%emt 0:00:41]} 16. Ng5 {[%emt 0:14:06]} Nc5 {[%emt 0:02:33]} 17. Bb4 {[%emt 0:01:50]} axb4 {[%emt 0:05:55]} 18. Rxa8 {[%emt 0:00:05]} e4 {[%emt 0:00:32]} 19. f3 {[%emt 0:10:28]} Bxb2 {[%emt 0:03:04]} 20. fxe4 {[%emt 0:01:00]} Bf6 {[%emt 0:02:26]} 21. Nf3 {[%emt 0:04:33]} fxe4 {[%emt 0:04:17]} 22. Nd2 {[%emt 0:07:16]} Bc3 {[%emt 0:04:37]} 23. Nxe4 {[%emt 0:00:56]} Nxb3 {[%emt 0:00:10]} 24. Rf1 {[%emt 0:04:52]} Rd8 {[%emt 0:01:10]} 25. Bh3 {[%emt 0:00:34]} Bxh3 {[%emt 0:05:45]} 26. Rxd8+ {[%emt 0:00:04]} Kg7 {[%emt 0:00:03]} 27. Rb1 {[%emt 0:04:43]} Bd4+ {[%emt 0:02:10]} 28. Nf2 {[%emt 0:00:24]} 1-0

[Event "2nd Gujarat Open 2019"]
[Site "Ahmedabad, Gujarat"]
[Date "2019.09.26"]
[Round "7.7"]
[White "Deepan Chakkravarthy J."]
[Black "Sidhant, Mohapatra"]
[Result "1/2-1/2"]
[ECO "B90"]
[WhiteElo "2539"]
[BlackElo "2357"]
[Annotator "ChessBase"]
[PlyCount "78"]
[EventDate "2019.09.22"]
[EventType "swiss"]
[EventCountry "IND"]
[SourceTitle "playchess.com"]
[Source "ChessBase"]
[SourceQuality "1"]
[TimeControl "5400+30"]

1. e4 {[%emt 0:04:26]} c5 {[%emt 0:00:00]} 2. Nf3 {[%emt 0:00:04]} d6 {[%emt 0:00:00]} 3. d4 {[%emt 0:04:15]} cxd4 {[%emt 0:00:15]} 4. Nxd4 {[%emt 0:00:03]} Nf6 {[%emt 0:00:10]} 5. Nc3 {[%emt 0:00:02]} a6 {[%emt 0:00:08]} 6. a4 {[%emt 0:00:07]} e5 {[%emt 0:03:48]} 7. Nde2 {[%emt 0:03:33]} Be7 {[%emt 0:07:26]} 8. g3 {[%emt 0:00:13]} O-O {[%emt 0:00:21]} 9. Bg2 {[%emt 0:00:03]} Be6 {[%emt 0:00:19]} 10. O-O {[%emt 0:00:05]} Nbd7 {[%emt 0:05:12]} 11. h3 {[%emt 0:02:03]} Rc8 {[%emt 0:01:58]} 12. Be3 {[%emt 0:06:26]} Qc7 {[%emt 0:13:02]} 13. a5 {[%emt 0:02:51]} Rfe8 {[%emt 0:14:15]} 14. Qd2 {[%emt 0:02:24]} Bc4 {[%emt 0:11:25]} 15. Rfc1 {[%emt 0:00:20]} Qc6 {[%emt 0:05:53]} 16. g4 {[%emt 0:12:59]} Bxe2 {[%emt 0:09:33]} 17. Qxe2 {[%emt 0:02:51]} Nc5 {[%emt 0:00:05]} 18. g5 {[%emt 0:10:36]} Nfd7 {[%emt 0:05:22]} 19. Nd5 {[%emt 0:00:09]} Bd8 {[%emt 0:00:43]} 20. b4 {[%emt 0:05:02]} Ne6 {[%emt 0:00:06]} 21. c4 {[%emt 0:00:04]} Ndf8 {[%emt 0:09:24]} 22. Qg4 {[%emt 0:05:26]} Qd7 {[%emt 0:00:32]} 23. h4 {[%emt 0:00:49]} Rc6 {[%emt 0:01:38]} 24. Kh2 {[%emt 0:13:32]} Ng6 {[%emt 0:02:00]} 25. Bh3 {[%emt 0:00:33]} Qc8 {[%emt 0:00:36]} 26. h5 {[%emt 0:02:59]} Ngf8 {[%emt 0:00:45]} 27. c5 {[%emt 0:09:49]} dxc5 {[%emt 0:01:39]} 28. Bxc5 {[%emt 0:00:04]} Nd7 {[%emt 0:02:21]} 29. Be3 {[%emt 0:00:09]} g6 {[%emt 0:02:47]} 30. Rd1 {[%emt 0:02:03]} Be7 {[%emt 0:00:29]} 31. hxg6 {[%emt 0:05:21]} hxg6 {[%emt 0:01:20]} 32. Qh4 {[%emt 0:00:07]} Bf8 {[%emt 0:00:22]} 33. Kg2 {[%emt 0:02:14]} Rd6 {[%emt 0:01:11]} 34. Nf6+ {[%emt 0:01:06]} Nxf6 {[%emt 0:00:12]} 35. gxf6 {[%emt 0:00:24]} Rxd1 {[%emt 0:01:39]} 36. Rxd1 {[%emt 0:00:01]} Qc2 {[%emt 0:00:01]} 37. Re1 {[%emt 0:03:35]} Nf4+ {[%emt 0:00:44]} 38. Bxf4 {[%emt 0:00:02]} exf4 {[%emt 0:00:01]} 39. Bf5 {[%emt 0:01:55]} Qc3 {[%emt 0:00:03]} 1/2-1/2

[Event "2nd Gujarat Open 2019"]
[Site "Ahmedabad, Gujarat"]
[Date "2019.09.26"]
[Round "7.8"]
[White "Pranav Vijay"]
[Black "Nguyen, Van Huy"]
[Result "0-1"]
[ECO "B12"]
[WhiteElo "2265"]
[BlackElo "2454"]
[Annotator "ChessBase"]
[PlyCount "182"]
[EventDate "2019.09.22"]
[EventType "swiss"]
[EventCountry "IND"]
[SourceTitle "playchess.com"]
[Source "ChessBase"]
[SourceQuality "1"]
[TimeControl "5400+30"]

1. e4 c6 {[%emt 0:01:11]} 2. d4 {[%emt 0:00:00]} d5 {[%emt 0:00:21]} 3. e5 {[%emt 0:00:00]} Bf5 {[%emt 0:00:19]} 4. Nf3 {[%emt 0:00:00]} e6 {[%emt 0:00:05]} 5. Be2 {[%emt 0:00:00]} Bb4+ {[%emt 0:00:53]} 6. Nbd2 {[%emt 0:00:02]} Nd7 {[%emt 0:00:23]} 7. O-O {[%emt 0:00:14]} Ba5 {[%emt 0:00:21]} 8. Nb3 {[%emt 0:00:56]} Bc7 {[%emt 0:02:31]} 9. Ne1 {[%emt 0:00:20]} Ne7 {[%emt 0:01:32]} 10. f4 {[%emt 0:02:12]} O-O {[%emt 0:03:16]} 11. Nd3 {[%emt 0:07:54]} Bb6 {[%emt 0:05:33]} 12. Be3 {[%emt 0:04:17]} f6 {[%emt 0:02:55]} 13. exf6 {[%emt 0:05:24]} Rxf6 {[%emt 0:03:53]} 14. Bf3 {[%emt 0:03:47]} Qc7 {[%emt 0:09:13]} 15. a4 {[%emt 0:03:53]} a6 {[%emt 0:03:59]} 16. Qd2 {[%emt 0:06:25]} Bxd3 {[%emt 0:03:58]} 17. cxd3 {[%emt 0:00:13]} Raf8 {[%emt 0:03:26]} 18. Rae1 {[%emt 0:03:26]} Qb8 {[%emt 0:03:05]} 19. g3 {[%emt 0:01:59]} Bc7 {[%emt 0:02:26]} 20. Bg2 {[%emt 0:05:37]} Nf5 {[%emt 0:06:24]} 21. Bf2 {[%emt 0:00:14]} h5 {[%emt 0:01:45]} 22. Qe2 {[%emt 0:02:01]} Rh6 {[%emt 0:04:25]} 23. Bh3 {[%emt 0:03:56]} Rff6 {[%emt 0:05:28]} 24. Nd2 {[%emt 0:06:13]} Bb6 {[%emt 0:02:42]} 25. Nf3 {[%emt 0:01:28]} Qa7 {[%emt 0:00:30]} 26. Bxf5 {[%emt 0:01:16]} Rxf5 {[%emt 0:00:59]} 27. Be3 {[%emt 0:00:11]} Rf8 {[%emt 0:03:35]} 28. Kg2 {[%emt 0:04:31]} Rhf6 {[%emt 0:01:10]} 29. Ng5 {[%emt 0:00:24]} g6 {[%emt 0:02:51]} 30. Bg1 {[%emt 0:01:09]} Ba5 {[%emt 0:03:32]} 31. Rb1 {[%emt 0:00:46]} Qb8 {[%emt 0:01:40]} 32. f5 {[%emt 0:01:39]} exf5 {[%emt 0:02:45]} 33. Qe7 {[%emt 0:00:13]} R8f7 {[%emt 0:00:24]} 34. Nxf7 {[%emt 0:00:07]} Rxf7 {[%emt 0:00:04]} 35. Qg5 {[%emt 0:02:23]} Nf8 {[%emt 0:00:47]} 36. b4 {[%emt 0:00:11]} Bd8 37. Qd2 {[%emt 0:00:41]} Bf6 {[%emt 0:01:50]} 38. Rfe1 {[%emt 0:01:21]} Qd6 {[%emt 0:00:32]} 39. Qe3 {[%emt 0:06:20]} Re7 {[%emt 0:00:37]} 40. Qd2 {[%emt 0:04:16]} Rxe1 {[%emt 0:01:21]} 41. Rxe1 {[%emt 0:00:06]} Ne6 {[%emt 0:00:36]} 42. Bf2 {[%emt 0:00:46]} Kf7 {[%emt 0:00:22]} 43. Qe3 {[%emt 0:02:22]} Qd7 {[%emt 0:01:55]} 44. Qc1 {[%emt 0:01:22]} Nxd4 {[%emt 0:01:51]} 45. Bxd4 {[%emt 0:04:38]} Bxd4 {[%emt 0:00:04]} 46. Qf4 {[%emt 0:00:05]} Bf6 {[%emt 0:00:16]} 47. d4 {[%emt 0:01:25]} Be7 {[%emt 0:01:46]} 48. Rb1 {[%emt 0:02:45]} Qe6 {[%emt 0:01:04]} 49. Kf2 {[%emt 0:00:42]} Qe4 {[%emt 0:03:30]} 50. Qxe4 {[%emt 0:04:46]} dxe4 {[%emt 0:00:36]} 51. b5 {[%emt 0:00:01]} axb5 {[%emt 0:00:29]} 52. axb5 {[%emt 0:00:01]} c5 {[%emt 0:00:43]} 53. dxc5 {[%emt 0:04:53]} Bxc5+ {[%emt 0:00:10]} 54. Ke2 {[%emt 0:00:02]} g5 {[%emt 0:03:23]} 55. Rc1 {[%emt 0:00:07]} Bd6 {[%emt 0:00:34]} 56. Rc8 {[%emt 0:03:34]} h4 {[%emt 0:03:56]} 57. gxh4 {[%emt 0:01:16]} gxh4 {[%emt 0:00:15]} 58. Rh8 {[%emt 0:03:08]} f4 {[%emt 0:00:57]} 59. Rxh4 {[%emt 0:00:09]} Kg6 {[%emt 0:00:17]} 60. Rh3 {[%emt 0:00:51]} Bc5 {[%emt 0:00:55]} 61. Rc3 {[%emt 0:00:31]} f3+ {[%emt 0:00:33]} 62. Kf1 {[%emt 0:00:00]} Bb6 {[%emt 0:00:24]} 63. Rc8 {[%emt 0:01:13]} e3 {[%emt 0:01:17]} 64. Re8 {[%emt 0:00:01]} Kf5 {[%emt 0:00:45]} 65. Re7 {[%emt 0:00:27]} Bc5 {[%emt 0:00:35]} 66. Re8 {[%emt 0:00:07]} b6 {[%emt 0:00:15]} 67. Ke1 {[%emt 0:00:11]} Kg4 {[%emt 0:00:43]} 68. Rg8+ {[%emt 0:00:23]} Kf4 {[%emt 0:00:23]} 69. Re8 {[%emt 0:00:04]} Kf5 {[%emt 0:00:55]} 70. Kf1 {[%emt 0:00:08]} Kg4 {[%emt 0:00:44]} 71. Rg8+ {[%emt 0:00:22]} Kf4 {[%emt 0:00:02]} 72. Re8 {[%emt 0:00:07]} Bd4 {[%emt 0:00:43]} 73. Ke1 {[%emt 0:01:12]} Be5 {[%emt 0:00:50]} 74. Kf1 {[%emt 0:00:23]} Ke4 {[%emt 0:00:34]} 75. Ke1 {[%emt 0:00:35]} Kd4 {[%emt 0:00:34]} 76. Rf8 {[%emt 0:00:31]} Ke4 {[%emt 0:00:04]} 77. Re8 {[%emt 0:00:06]} Kf5 {[%emt 0:00:35]} 78. Kf1 {[%emt 0:00:45]} Bd4 {[%emt 0:00:46]} 79. Ke1 {[%emt 0:00:55]} e2 {[%emt 0:01:18]} 80. Re7 {[%emt 0:00:46]} Bf6 {[%emt 0:00:22]} 81. Re8 {[%emt 0:00:20]} Bh4+ {[%emt 0:00:06]} 82. Kd2 {[%emt 0:00:00]} Kg4 {[%emt 0:00:13]} 83. h3+ {[%emt 0:02:39]} Kxh3 {[%emt 0:00:15]} 84. Re3 {[%emt 0:00:06]} e1=Q+ {[%emt 0:00:18]} 85. Rxe1 {[%emt 0:00:11]} Bxe1+ {[%emt 0:00:05]} 86. Ke3 {[%emt 0:00:19]} f2 {[%emt 0:00:08]} 87. Ke2 {[%emt 0:00:02]} Kg2 {[%emt 0:00:04]} 88. Kd1 {[%emt 0:00:03]} f1=Q {[%emt 0:00:21]} 89. Kc2 {[%emt 0:00:04]} Qc4+ {[%emt 0:00:12]} 90. Kd1 {[%emt 0:00:04]} Kf3 {[%emt 0:00:09]} 91. Kxe1 {[%emt 0:00:04]} Qc1# {[%emt 0:00:04]} 0-1

[Event "2nd Gujarat Open 2019"]
[Site "Ahmedabad, Gujarat"]
[Date "2019.09.26"]
[Round "7.9"]
[White "Neelotpal, Das"]
[Black "Neelash Saha"]
[Result "0-1"]
[ECO "B12"]
[WhiteElo "2433"]
[BlackElo "2334"]
[Annotator "NA"]
[PlyCount "164"]
[EventDate "2019.09.22"]
[EventType "swiss"]
[EventCountry "IND"]
[SourceTitle "playchess.com"]
[Source "ChessBase"]
[SourceQuality "1"]
[TimeControl "5400+30"]

1. e4 {[%emt 0:00:00]} c6 {[%emt 0:01:15]} 2. d4 {[%emt 0:00:00]} d5 {[%emt 0:00:04]} 3. e5 {[%emt 0:00:00]} Bf5 {[%emt 0:00:04]} 4. Nf3 {[%emt 0:00:00]} e6 {[%emt 0:00:05]} 5. Be2 {[%emt 0:00:00]} Ne7 {[%emt 0:00:40]} 6. Nbd2 {[%emt 0:00:09]} c5 {[%emt 0:02:55]} 7. dxc5 {[%emt 0:01:09]} Nec6 {[%emt 0:01:15]} 8. a3 {[%emt 0:01:40]} Bxc5 {[%emt 0:01:11]} 9. O-O {[%emt 0:09:34]} Nd7 {[%emt 0:04:54]} 10. Bb5 {[%emt 0:01:33]} O-O {[%emt 0:03:22]} 11. Bxc6 {[%emt 0:03:50]} bxc6 {[%emt 0:01:04]} 12. b4 {[%emt 0:00:16]} Bb6 {[%emt 0:01:31]} 13. Bb2 {[%emt 0:00:05]} c5 {[%emt 0:00:41]} 14. Re1 {[%emt 0:13:01]} a5 {[%emt 0:05:45]} 15. b5 {[%emt 0:09:28]} a4 {[%emt 0:00:32]} 16. c4 {[%emt 0:03:07]} Ba5 {[%emt 0:00:44]} 17. Qe2 {[%emt 0:08:04]} Nb6 {[%emt 0:02:56]} 18. cxd5 {[%emt 0:03:44]} exd5 {[%emt 0:05:54]} 19. Rac1 {[%emt 0:03:01]} Qe7 {[%emt 0:00:15]} 20. Red1 {[%emt 0:00:53]} Rfc8 {[%emt 0:03:06]} 21. Nf1 {[%emt 0:03:44]} Be6 {[%emt 0:01:01]} 22. Bc3 {[%emt 0:04:19]} Bxc3 {[%emt 0:02:21]} 23. Rxc3 {[%emt 0:00:05]} d4 {[%emt 0:00:02]} 24. Rcc1 {[%emt 0:00:04]} Bb3 {[%emt 0:01:11]} 25. Re1 {[%emt 0:00:04]} Rd8 {[%emt 0:01:27]} 26. Ng3 {[%emt 0:02:35]} d3 {[%emt 0:06:54]} 27. Qd2 {[%emt 0:03:28]} Nc4 {[%emt 0:01:15]} 28. Nf5 {[%emt 0:00:09]} Qf8 {[%emt 0:00:49]} 29. Qf4 {[%emt 0:10:30]} d2 {[%emt 0:03:43]} 30. Nxd2 {[%emt 0:00:06]} Nxd2 {[%emt 0:00:03]} 31. Nd6 {[%emt 0:02:25]} f6 {[%emt 0:08:40]} 32. Re2 {[%emt 0:00:17]} fxe5 {[%emt 0:01:02]} 33. Qxf8+ {[%emt 0:00:31]} Kxf8 {[%emt 0:00:04]} 34. Rxd2 {[%emt 0:00:12]} c4 {[%emt 0:00:11]} 35. b6 {[%emt 0:12:25]} Rab8 {[%emt 0:02:00]} 36. f3 {[%emt 0:00:07]} Rxb6 {[%emt 0:01:25]} 37. Nxc4 {[%emt 0:00:06]} Rc8 {[%emt 0:01:50]} 38. Nxb6 {[%emt 0:00:13]} Rxc1+ {[%emt 0:00:08]} 39. Kf2 {[%emt 0:00:01]} Ra1 {[%emt 0:00:45]} 40. Nd7+ {[%emt 0:01:55]} Ke8 {[%emt 0:02:20]} 41. Nc5 {[%emt 0:05:22]} Rxa3 {[%emt 0:03:31]} 42. Re2 {[%emt 0:00:08]} Kf7 {[%emt 0:00:11]} 43. Rxe5 {[%emt 0:00:45]} Bc2 {[%emt 0:02:45]} 44. Kg3 {[%emt 0:01:20]} h6 {[%emt 0:04:20]} 45. h4 Rc3 {[%emt 0:01:38]} 46. Ne4 {[%emt 0:00:37]} Rb3 {[%emt 0:00:55]} 47. Kf4 {[%emt 0:00:34]} a3 {[%emt 0:04:09]} 48. Ra5 {[%emt 0:00:41]} Bb1 {[%emt 0:02:56]} 49. Ra7+ {[%emt 0:00:15]} Kg8 {[%emt 0:00:05]} 50. g4 {[%emt 0:00:35]} a2 {[%emt 0:00:45]} 51. g5 {[%emt 0:00:09]} hxg5+ {[%emt 0:04:31]} 52. hxg5 {[%emt 0:00:36]} Kh7 {[%emt 0:00:46]} 53. Ra6 {[%emt 0:01:10]} Rb6 {[%emt 0:01:28]} 54. Ra7 {[%emt 0:00:11]} Rc6 {[%emt 0:00:37]} 55. Ke3 {[%emt 0:01:31]} Kg6 {[%emt 0:00:29]} 56. Kd4 {[%emt 0:00:30]} Rc1 {[%emt 0:02:04]} 57. Nc3 {[%emt 0:00:26]} Rc2 {[%emt 0:00:06]} 58. Ne4 {[%emt 0:00:38]} Rc7 {[%emt 0:01:00]} 59. Ra5 {[%emt 0:00:14]} Rd7+ {[%emt 0:01:35]} 60. Ke3 {[%emt 0:00:47]} Rd1 {[%emt 0:00:22]} 61. Nd2 {[%emt 0:00:30]} Kh5 {[%emt 0:01:45]} 62. Ra7 {[%emt 0:00:34]} Rg1 {[%emt 0:01:00]} 63. f4 {[%emt 0:00:30]} Kg4 {[%emt 0:01:23]} 64. Kd4 {[%emt 0:00:24]} Kxf4 {[%emt 0:00:39]} 65. Kc3 {[%emt 0:00:14]} Rc1+ {[%emt 0:01:50]} 66. Kb3 {[%emt 0:00:28]} Rc7 {[%emt 0:01:32]} 67. Ra5 {[%emt 0:00:34]} Rb7+ {[%emt 0:01:19]} 68. Kc3 {[%emt 0:00:10]} Rb5 {[%emt 0:00:06]} 69. Ra7 {[%emt 0:00:30]} g6 {[%emt 0:00:42]} 70. Nb3 {[%emt 0:00:03]} Kxg5 {[%emt 0:00:39]} 71. Kb2 {[%emt 0:00:22]} Bf5 {[%emt 0:00:16]} 72. Ra5 {[%emt 0:00:34]} Rxa5 {[%emt 0:00:05]} 73. Nxa5 {[%emt 0:00:03]} Be6 {[%emt 0:00:08]} 74. Nc6 {[%emt 0:01:16]} Kf4 {[%emt 0:01:20]} 75. Nd4 {[%emt 0:00:20]} Bc4 {[%emt 0:00:04]} 76. Nc2 {[%emt 0:00:45]} g5 {[%emt 0:00:22]} 77. Ne1 {[%emt 0:00:05]} Ke3 {[%emt 0:00:07]} 78. Nc2+ {[%emt 0:00:10]} Ke4 {[%emt 0:01:19]} 79. Ne1 {[%emt 0:00:04]} g4 {[%emt 0:00:12]} 80. Ng2 {[%emt 0:00:04]} g3 {[%emt 0:00:34]} 81. Ka1 {[%emt 0:00:12]} Bd5 {[%emt 0:01:05]} 82. Kb2 {[%emt 0:00:24]} Kf3 {[%emt 0:00:12]} 0-1

[Event "2nd Gujarat Open 2019"]
[Site "Ahmedabad, Gujarat"]
[Date "2019.09.26"]
[Round "7.10"]
[White "Lugovskoy, Maxim"]
[Black "Shailesh, Dravid"]
[Result "1-0"]
[ECO "B01"]
[WhiteElo "2422"]
[BlackElo "2299"]
[Annotator "NA"]
[PlyCount "88"]
[EventDate "2019.09.22"]
[EventType "swiss"]
[EventCountry "IND"]
[SourceTitle "playchess.com"]
[Source "ChessBase"]
[SourceQuality "1"]
[TimeControl "5400+30"]

1. e4 {[%emt 0:00:12]} d5 {[%emt 0:01:55]} 2. exd5 {[%emt 0:00:56]} Nf6 {[%emt 0:00:05]} 3. d4 {[%emt 0:00:37]} Bg4 {[%emt 0:00:05]} 4. f3 {[%emt 0:00:28]} Bf5 {[%emt 0:00:07]} 5. c4 {[%emt 0:00:07]} e6 {[%emt 0:00:10]} 6. dxe6 {[%emt 0:00:15]} Nc6 {[%emt 0:00:05]} 7. Bd3 {[%emt 0:01:41]} Bb4+ {[%emt 0:04:39]} 8. Nc3 {[%emt 0:01:45]} Bxd3 {[%emt 0:04:19]} 9. Qxd3 {[%emt 0:00:09]} Nxd4 {[%emt 0:04:55]} 10. exf7+ {[%emt 0:05:38]} Kxf7 {[%emt 0:00:11]} 11. Be3 {[%emt 0:00:07]} Re8 {[%emt 0:06:45]} 12. O-O-O {[%emt 0:02:03]} c5 {[%emt 0:00:41]} 13. Nh3 {[%emt 0:03:09]} Qa5 {[%emt 0:09:28]} 14. Ng5+ {[%emt 0:03:03]} Kf8 {[%emt 0:01:10]} 15. Rhe1 {[%emt 0:07:20]} Bxc3 {[%emt 0:17:42]} 16. bxc3 {[%emt 0:03:14]} Nc6 {[%emt 0:00:51]} 17. Qc2 {[%emt 0:15:02]} Ne5 {[%emt 0:03:37]} 18. Qb3 {[%emt 0:03:38]} h6 {[%emt 0:01:56]} 19. Nh3 {[%emt 0:00:58]} Re6 {[%emt 0:00:33]} 20. Nf4 {[%emt 0:02:38]} Rb6 {[%emt 0:00:48]} 21. Bxc5+ {[%emt 0:00:11]} Qxc5 {[%emt 0:09:12]} 22. Rxe5 {[%emt 0:00:05]} Rxb3 {[%emt 0:01:47]} 23. Rxc5 {[%emt 0:00:31]} Rxc3+ {[%emt 0:00:04]} 24. Kb2 {[%emt 0:00:18]} Re3 {[%emt 0:00:05]} 25. Rc7 {[%emt 0:01:30]} b6 {[%emt 0:00:11]} 26. Rd2 {[%emt 0:00:29]} Kg8 {[%emt 0:01:15]} 27. Ne2 {[%emt 0:01:06]} Rae8 {[%emt 0:01:15]} 28. Nd4 {[%emt 0:01:49]} R3e7 {[%emt 0:00:29]} 29. Rxe7 {[%emt 0:00:06]} Rxe7 {[%emt 0:00:02]} 30. Nf5 {[%emt 0:01:28]} Rc7 {[%emt 0:00:37]} 31. Rd4 {[%emt 0:01:01]} Nd7 {[%emt 0:02:42]} 32. Ne7+ {[%emt 0:00:53]} Kf7 {[%emt 0:00:06]} 33. Nd5 {[%emt 0:00:05]} Rc8 {[%emt 0:00:40]} 34. Nc3 {[%emt 0:00:57]} Ne5 {[%emt 0:01:45]} 35. Nb5 {[%emt 0:04:17]} Rc5 {[%emt 0:02:34]} 36. Na3 {[%emt 0:03:55]} Ke6 {[%emt 0:02:10]} 37. Re4 {[%emt 0:00:08]} Kf6 {[%emt 0:00:28]} 38. Kb3 {[%emt 0:01:45]} g6 {[%emt 0:03:50]} 39. Rf4+ {[%emt 0:05:10]} Ke7 {[%emt 0:00:44]} 40. Nc2 {[%emt 0:00:59]} Nc6 {[%emt 0:04:32]} 41. Ne3 {[%emt 0:00:59]} Ke6 {[%emt 0:00:05]} 42. Re4+ {[%emt 0:01:26]} Kf7 {[%emt 0:00:43]} 43. Rf4+ {[%emt 0:05:47] a6 Re4 b5 f4 bxc4+ g4 Rd5+ Nxc4 Rd1 Kc3 Rh1 h4} Kg7 {[%emt 0:00:00] Nd6 Nd8 Re8 Nc6 f5} 44. Rh4 {[%emt 0:03:43] Re6 Rh3+ Kd2} Nd4+ {[%emt 0:00:00] f6+ Kh7 Re7+ Kg8 Re8+ Kh7 f7} 1-0

[Event "2nd Gujarat Open 2019"]
[Site "Ahmedabad, Gujarat"]
[Date "2019.09.26"]
[Round "7.11"]
[White "Sahoo, Utkal Ranjan"]
[Black "Murshed, Niaz"]
[Result "1-0"]
[ECO "A40"]
[WhiteElo "2329"]
[BlackElo "2405"]
[Annotator "NA"]
[PlyCount "83"]
[EventDate "2019.09.22"]
[EventType "swiss"]
[EventCountry "IND"]
[SourceTitle "playchess.com"]
[Source "ChessBase"]
[SourceQuality "1"]
[TimeControl "5400+30"]

1. d4 {[%emt 0:00:00]} g6 {[%emt 0:03:28]} 2. Nf3 {[%emt 0:01:26]} Bg7 {[%emt 0:00:49]} 3. c3 {[%emt 0:01:23]} Nf6 {[%emt 0:02:01]} 4. Bg5 {[%emt 0:01:35]} h6 {[%emt 0:03:14]} 5. Bh4 {[%emt 0:00:39]} d6 {[%emt 0:04:28]} 6. Nbd2 {[%emt 0:00:49]} g5 {[%emt 0:00:20]} 7. Bg3 {[%emt 0:00:07]} Bf5 {[%emt 0:00:03]} 8. e3 {[%emt 0:03:00]} Nbd7 {[%emt 0:02:56]} 9. Bc4 {[%emt 0:02:57]} e6 {[%emt 0:02:20]} 10. Bb3 {[%emt 0:08:08]} Qe7 {[%emt 0:03:17]} 11. Bc2 {[%emt 0:00:32]} Bxc2 {[%emt 0:06:17]} 12. Qxc2 {[%emt 0:00:02]} Nh5 {[%emt 0:00:19]} 13. O-O-O {[%emt 0:13:12]} O-O-O {[%emt 0:03:56]} 14. e4 {[%emt 0:01:27]} Kb8 {[%emt 0:00:12]} 15. Kb1 {[%emt 0:01:30]} Nb6 {[%emt 0:07:50]} 16. Nb3 {[%emt 0:04:43]} Qd7 {[%emt 0:06:07]} 17. Qe2 {[%emt 0:04:59]} f5 {[%emt 0:07:18]} 18. Nfd2 {[%emt 0:00:55]} Qf7 {[%emt 0:00:30]} 19. f3 {[%emt 0:00:21]} Rhf8 {[%emt 0:01:47]} 20. Nc1 {[%emt 0:04:31]} Qg6 {[%emt 0:12:19]} 21. Nd3 {[%emt 0:01:45]} fxe4 {[%emt 0:01:19]} 22. Qxe4 {[%emt 0:06:00]} Qf7 {[%emt 0:02:22]} 23. Rhe1 {[%emt 0:02:54]} Rde8 {[%emt 0:01:38]} 24. Qe2 {[%emt 0:04:01]} Nd5 {[%emt 0:03:23]} 25. Ne4 {[%emt 0:01:28]} Qg6 {[%emt 0:06:03]} 26. c4 {[%emt 0:08:34]} Ne7 {[%emt 0:04:05]} 27. Bf2 {[%emt 0:04:05]} b6 {[%emt 0:03:37]} 28. Qc2 {[%emt 0:06:07]} Nf4 {[%emt 0:01:13]} 29. c5 {[%emt 0:11:06]} d5 {[%emt 0:02:56]} 30. cxb6 {[%emt 0:00:12]} axb6 {[%emt 0:00:21]} 31. Nc3 {[%emt 0:01:11]} Nxd3 {[%emt 0:00:54]} 32. Rxd3 {[%emt 0:00:08]} Nc6 {[%emt 0:01:49]} 33. Nb5 {[%emt 0:00:14]} Re7 {[%emt 0:00:50]} 34. a3 {[%emt 0:01:45]} Na7 {[%emt 0:00:31]} 35. Nc3 {[%emt 0:01:01]} Rfe8 {[%emt 0:00:50]} 36. Bg3 {[%emt 0:01:01]} Kb7 {[%emt 0:00:21]} 37. Rc1 {[%emt 0:00:36]} Qf5 {[%emt 0:02:47]} 38. Ka1 {[%emt 0:00:59]} Rc8 {[%emt 0:00:15]} 39. Na4 {[%emt 0:00:35]} c6 {[%emt 0:00:45]} 40. Nxb6 {[%emt 0:00:51]} Kxb6 {[%emt 0:00:24]} 41. Rb3+ {[%emt 0:00:27]} Ka6 {[%emt 0:00:16]} 42. Qe2+ {[%emt 0:00:08]} 1-0